Workbook

Sheet Pasiūlymas
A1: Perkantysis subjektas, kuriam teikiamas pasiūlymas: | C1: VŠĮ Kauno klinikinė ligoninė
B3: PASIŪLYMAS
B4: Endoskopiniai priedai procedūroms
A6: Data: | B6: 2019-11-22
A7: Nr.: | B7: 457624
A8: Vieta: | B8: Vilnius
A10: Tiekėjo arba tiekėjų grupės narių pavadinimas (-ai) | C10: Ilsanta
A11: Tiekėjo arba tiekėjo grupės narių juridinio asmens kodas (-ai) (tuo atveju, jei pasiūlymą teikia fizinis asmuo - verslo pažymėjimo Nr. ar pan.) | C11: 110498671
A12: Tiekėjo arba tiekėjo grupės narių PVM mokėtojo kodas (-ai) | C12: LT104986716
A13: Tiekėjų grupės narys, atstovaujantis arba vadovaujantis tiekėjų grupei (pildoma, jei pasiūlymą teikia tiekėjų grupė)
A14: Tiekėjo valdymo ar priežiūros organo narys (-iai) ar kitas asmuo (-ys), turintis (-ys) teisę atstovauti tiekėjui ar jį kontroliuoti, jo vardu priimti sprendimą, sudaryti sandorį | C14: Sandra Čaikė
A15: Tiekėjo arba atstovaujančio tiekėjų grupės nario adresas, telefono numeris, fakso numeris, el. paštas | C15: Saltoniškių g.29,08105 Vilnius
A16: Tiekėjo arba atstovaujančio tiekėjų grupės nario banko pavadinimas, banko kodas, sąskaitos Nr. | C16: Luminor bankas, kodas 40100, A.s.LT254010042401605375
A17: Asmens, įgalioto pasirašyti sutartį, vardas, pavardė, pareigos | C17: Generalinis direktorius Tomas Godelis
A18: Asmens, atsakingo už pirkimą, vardas, pavardė, telefono numeris, el. paštas | C18: Indre Vilkauskiene, 868950580, indre@ilsanta.lt
A24: Siūlomas pirkimo objektas visiškai atitinka pirkimo sąlygose nustatytus reikalavimus ir jo kaina yra:
A28: Nr. | B28: Pavadinimas | C28: Maksimalus kiekis | D28: Mato vienetas | E28: Vnt. įkainis be PVM, Eur | F28: Suma be PVM, Eur | G28: Siūlomo produkto parametrai, gamintojas
A29: 1. | B29: Endoskopiniai priedai Olympus Exera II/III aparatūrai
A30: 1.1. | B30: Biopsinės angos vožtuvėliai | C30: 30 | D30: kompl. | F30: =IF(ISBLANK(E30),"", PRODUCT(C30,E30)) -> 
A31: 1.1.1. | B31: Biopsinės angos vožtuvai, (10 vnt./kompl.)
A32: 1.1.2. | B32: Skirti biopsinio kanalo vaizdo Olympus EVIS 145, 160, 165 ir 185 serijos vaizdo endoskopams gastroskopams, kolonoskopams
A33: 1.1.3. | B33: Daugkartiniai
A34: 1.2. | B34: Oro/vandens vožtuvas | C34: 5 | D34: vnt. | F34: =IF(ISBLANK(E34),"", PRODUCT(C34,E34)) -> 
A35: 1.2.1. | B35: Oro/vandens vožtuvas Olympus gamintojo EVIS 145, 165 ir 185 serijos, vaizdo endoskopams
A36: 1.2.2. | B36: Daugkartiniai
A37: 1.3. | B37: Atsiurbimo vožtuvas | C37: 5 | D37: vnt. | F37: =IF(ISBLANK(E37),"", PRODUCT(C37,E37)) -> 
A38: 1.3.1. | B38: Olympus gamintojo EVIS 145, 165 ir 185 serijos vaizdo endoskopams
A39: 1.4. | B39: Elektrinių kontaktų dangtelis | C39: 2 | D39: vnt. | F39: =IF(ISBLANK(E39),"", PRODUCT(C39,E39)) -> 
A40: 1.4.1. | B40: Elektrinių kontaktų dangtelis Olympus gamintojo EVIS 145, 165 serijos vaizdo endoskopams
A41: 1.5. | B41: Filtrai | C41: 100 | D41: vnt. | F41: =IF(ISBLANK(E41),"", PRODUCT(C41,E41)) -> 
A42: 1.5.1. | B42: Olympus gamintojo vakuuminiams siurbliams, Olympus KV-5
A43: 1.6. | B43: Vandens bakelis | C43: 2 | D43: vnt. | F43: =IF(ISBLANK(E43),"", PRODUCT(C43,E43)) -> 
A44: 1.6.1. | B44: Olympus gamintojo EVIS 145, 165 ir 185 serijos, vaizdo endoskopams
A45: 1.7. | B45: Injektorių gastroskopijai komplektas | C45: 10 | D45: kompl. | F45: =IF(ISBLANK(E45),"", PRODUCT(C45,E45)) -> 
A46: 1.7.1. | B46: Vienkartinės sterilios adatos ( 6 vnt.)
A47: 1.7.2. | B47: Adatos ilgis 4-5 mm
A48: 1.7.3. | B48: Adatos dydis 23G (0,6mm)
A49: 1.7.4. | B49: Tinkamos prie daugkartinio šarvo MAJ-68.
A50: 1.8. | B50: Injektorių kolonoskopijai komplektas | C50: 10 | D50: kompl. | F50: =IF(ISBLANK(E50),"", PRODUCT(C50,E50)) -> 
A51: 1.8.1. | B51: Vienkartinės sterilios adatos ( 6 vnt.)
A52: 1.8.2. | B52: Adatos ilgis 4-5 mm
A53: 1.8.3. | B53: Adatos dydis 23G (0,6mm)
A54: 1.8.4. | B54: Tinkamos prie daugkartinio šarvo MAJ-69
A55: 1.9. | B55: Siurbimo kanalo vožtuvas bonchoskopui | C55: 20 | D55: vnt. | F55: =IF(ISBLANK(E55),"", PRODUCT(C55,E55)) -> 
A56: 1.9.1. | B56: Siurbimo kanalo vožtuvas bonchoskopui Olympus gamintojo EVIS 180 serijos, vaizdo endoskopams
A57: 1.9.2. | B57: Vienkartinis
A58: 1.9.3. | B58: Sterili pakuotė
A59: 1.10. | B59: Siurbimo kanalo vožtuvas bonchoskopui | C59: 2 | D59: vnt. | F59: =IF(ISBLANK(E59),"", PRODUCT(C59,E59)) -> 
A60: 1.10.1. | B60: Siurbimo kanalo vožtuvas bonchoskopui Olympus gamintojo EVIS 180 serijos vaizdo endoskopams
A61: 1.10.2. | B61: Daugkartinis
A62: 1.11. | B62: Biopsinės angos vožtuvas bonchoskopui | C62: 10 | D62: vnt. | F62: =IF(ISBLANK(E62),"", PRODUCT(C62,E62)) -> 
A63: 1.11.1. | B63: Biopsinės angos vožtuvas bonchoskopui Olympus gamintojo EVIS 180 serijos vaizdo endoskopams
A64: 1.11.2. | B64: Daugkartinis
A65: 1.12. | B65: Kilputės svetimkūnių šalinimui bronchoskopijos metu | C65: 2 | D65: vnt. | F65: =IF(ISBLANK(E65),"", PRODUCT(C65,E65)) -> 
A66: 1.12.1. | B66: Daugkartinės
A67: 1.12.2. | B67: Sterilizuojamos
E68: Suma be PVM | F68: =IF((COUNT(C30:C67)<>COUNT(F30:F67)),"", SUM(F30:F67)) ->  | G68: =IF((COUNT(C30:C67)<>COUNT(F30:F67)),"Neužpildytos visų objektų kainos", "") -> Neužpildytos visų objektų kainos
E69: PVM suma
E70: Suma su PVM | F70: =IF(ISBLANK(F69), "", SUM(F68:F69)) -> 
A72: 2. | B72: Endoskopiniai adatiniai injektoriai skirti skleroterapijai
A73: 2.1. | B73: Endoskopiniai adatiniai injektoriai skirti skleroterapijai | C73: 50 | D73: vnt. | E73: 35 | F73: =IF(ISBLANK(E73),"", PRODUCT(C73,E73)) -> 1750
A74: 2.1.1. | B74: Vienkartinis | G74: Boston Scientific, Interject M0051815-M0051836*, Vienkartinis
A75: 2.1.2. | B75: Darbinis ilgis ne trumpesnis nei 2000-2400 mm | G75: Darbinis ilgis 24000-2400 mm
A76: 2.1.3. | B76: Adatos diametras 23G arba 25G pagal poreikį | G76: Adatos diametras 23G arba 25 G pagal poreiki
A77: 2.1.4. | B77: Adatos ilgis 4 - 6 mm | G77: Adatos ilgis 4-6 mm
A78: 2.1.5. | B78: Adata atspari kateterio užsilenkimui | G78: Adata atspari kateterio uzsilenkimui
E79: Suma be PVM | F79: =IF((COUNT(C73:C78)<>COUNT(F73:F78)),"", SUM(F73:F78)) -> 1750 | G79: =IF((COUNT(C73:C78)<>COUNT(F73:F78)),"Neužpildytos visų objektų kainos", "") -> 
E80: PVM suma | F80: =(1750*1.05)-1750 -> 87.5
E81: Suma su PVM | F81: =IF(ISBLANK(F80), "", SUM(F79:F80)) -> 1837.5
A83: 3. | B83: Endoskopiniai adatiniai injektoriai
A84: 3.1. | B84: Endoskopiniai adatiniai injektoriai | C84: 220 | D84: vnt. | E84: 34 | F84: =IF(ISBLANK(E84),"", PRODUCT(C84,E84)) -> 7480
A85: 3.1.1. | B85: Veinakrtinai | G85: Boston Scientific, Interject needle, M0051815-M0051836, Vienkartiniai
A86: 3.1.2. | B86: Dabinis ilgis 240 +- 5 cm | G86: Darbinis ilgis 240 cm
A87: 3.1.3. | B87: Adatos diametras ne daugiau 0.7mm | G87: Adatos diametras 0.7 mm
A88: 3.1.4. | B88: Adatos ilgis ne daugiau 5 mm | G88: Adatos ilgis 5 mm
A89: 3.1.5. | B89: Su adatos fiksacija | G89: Su adatos fiksacija
A90: 3.1.6. | B90: Tinkantys endoskopo 2,8 mm darbiniam kanalui | G90: Tinkamntys endoskopo 2,8 mm darbiniam kanalui
E91: Suma be PVM | F91: =IF((COUNT(C84:C90)<>COUNT(F84:F90)),"", SUM(F84:F90)) -> 7480 | G91: =IF((COUNT(C84:C90)<>COUNT(F84:F90)),"Neužpildytos visų objektų kainos", "") -> 
E92: PVM suma | F92: =(7480*1.05)-7480 -> 374
E93: Suma su PVM | F93: =IF(ISBLANK(F92), "", SUM(F91:F92)) -> 7854
A95: 4. | B95: Biopsinės žnyplės
A96: 4.1. | B96: Biopsinės žnyplės | C96: 500 | D96: vnt. | E96: 7 | F96: =IF(ISBLANK(E96),"", PRODUCT(C96,E96)) -> 3500
A97: 4.1.1. | B97: Vienkartinės | G97: Boston Scientific, Radial Jaw/Jaw 4 jumbo, M00513383-M00513412, M00513305-M00513332, M00513343-M00513372, Vienkartines
A98: 4.1.2. | B98: Su adata arba be jos | G98: Su adata arba be jos
A99: 4.1.3. | B99: Kaušeliai standartiniai arba dideli, turintys dantukus per visą kaušelio kraštą | G99: Kauseliai standartiniai arba dideli, turintys dantukus per visa kauselio krasta
A100: 4.1.4. | B100: Atsidarymo kampas ne mažesnis nei 180° | G100: Atsidarymo kampas 180
A101: 4.1.5. | B101: Žnyplių kateterio apvalkalas yra sugraduotas | G101: Znypliu kateterio apvalkalas yra sugraduotas
A102: 4.1.6. | B102: Žnyplės tinkančios endoskopui, kurio kanalo diametras 2,8 mm | G102: Znyples tinkancios endoskopui, kurio kanalo diametras 2,8 mm
A103: 4.1.7. | B103: Prietaiso darbinis ilgis ne trumpesnis nei 240 cm | G103: Prietaiso darbinis ilgis 240 cm
A104: 4.1.8. | B104: Aligatoriaus tipo | G104: Aligatoriaus tipo
E105: Suma be PVM | F105: =IF((COUNT(C96:C104)<>COUNT(F96:F104)),"", SUM(F96:F104)) -> 3500 | G105: =IF((COUNT(C96:C104)<>COUNT(F96:F104)),"Neužpildytos visų objektų kainos", "") -> 
E106: PVM suma | F106: =(3500*1.05)-3500 -> 175
E107: Suma su PVM | F107: =IF(ISBLANK(F106), "", SUM(F105:F106)) -> 3675
A109: 5. | B109: Polipektominė kilpa
A110: 5.1. | B110: Polipektominė kilpa | C110: 250 | D110: vnt. | E110: 16 | F110: =IF(ISBLANK(E110),"", PRODUCT(C110,E110)) -> 4000
A111: 5.1.1. | B111: Vienkartinė | G111: Boston Scientific, Captivator/Captivator II, M00562301-M00562371, M00561221-M00561291, vienkartine
A112: 5.1.2. | B112: Sterili pakuotė | G112: Sterili pakuote
A113: 5.1.3. | B113: Tinkamos endoskopui, kurio darbinis kanalas 2,8 mm | G113: Tinkamos endoskopui, kurio darbinis kanalas 2,8 mm
A114: 5.1.4. | B114: Tinkamos endoskopui, kurio darbinis kanalas 2,8 mm | G114: Tinkamos endoskopui, kurio darbinis kanalas 2,8 mm
A115: 5.1.5. | B115: Kilpos šerdis tvirtai supinta iš 7 vielučių | G115: Kilpos serdis tvirtai supinta is 7 vieluciu
A116: 5.1.6. | B116: Turi plastikinę rankeną su integruotu rotaciniu mechanizmu | G116: Turi plastikine rankena su integruotu rotaciniu mechanizmu
A117: 5.1.7. | B117: Galimi išskleistos kilpos dydžiai nuo 10 iki 33 mm | G117: Galimi išskleistos kilpos dydziai nuo 10 iki 33 mm
A118: 5.1.8. | B118: Instrumento ilgis ne trumpesnis nei 240 cm | G118: Instrumento ilgis 240 cm
A119: 5.1.9. | B119: Turi turėti kabelio pajungimo lizdą, karštai polipektomijai atlikti | G119: Turi kablio pajungimo lizda, karstai polipektomijai atlikti
A120: 5.1.10. | B120: Kilpa, tinkanti naudoti tiek šaltu, tiek karštu būdu | G120: Kilpa, tinka naudoti tiek saltu, tiek karstu budu
E121: Suma be PVM | F121: =IF((COUNT(C110:C120)<>COUNT(F110:F120)),"", SUM(F110:F120)) -> 4000 | G121: =IF((COUNT(C110:C120)<>COUNT(F110:F120)),"Neužpildytos visų objektų kainos", "") -> 
E122: PVM suma | F122: =(4000*1.05)-4000 -> 200
E123: Suma su PVM | F123: =IF(ISBLANK(F122), "", SUM(F121:F122)) -> 4200
A125: 6. | B125: Hemostatiniai klipai
A126: 6.1. | B126: Klipai kraujavimo stabdymui | C126: 800 | D126: vnt. | E126: 96 | F126: =IF(ISBLANK(E126),"", PRODUCT(C126,E126)) -> 76800
A127: 6.1.1. | B127: Vienakrtinai | G127: Boston Scientific, Resolution 360, M0052120-M00521243, vienkartinai
A128: 6.1.2. | B128: Sterilūs | G128: Sterilus
A129: 6.1.3. | B129: Klipo atidarymo kampas 135° | G129: Klipo atidarymo kampas 135
A130: 6.1.4. | B130: Klipo ilgis 7-9 mm | G130: Klipo ilgis 7-9 mm
E131: Suma be PVM | F131: =IF((COUNT(C126:C130)<>COUNT(F126:F130)),"", SUM(F126:F130)) -> 76800 | G131: =IF((COUNT(C126:C130)<>COUNT(F126:F130)),"Neužpildytos visų objektų kainos", "") -> 
E132: PVM suma | F132: =(76800*1.05)-76800 -> 3840
E133: Suma su PVM | F133: =IF(ISBLANK(F132), "", SUM(F131:F132)) -> 80640
A135: 7. | B135: Balioninis dilatatorius, stemplinis, prievarčio, biliarinis ir koloninis
A136: 7.1. | B136: Balioninis dilatatorius, stemplinis, prievarčio, biliarinis ir koloninis | C136: 20 | D136: vnt. | E136: 159 | F136: =IF(ISBLANK(E136),"", PRODUCT(C136,E136)) -> 3180
A137: 7.1.1. | B137: Vienkartinis | G137: Boston Scientific, CRE Pro dilators, M00558660-M00558710, vienkartinis
A138: 7.1.2. | B138: Sterili pakuotė | G138: Sterili pakuote
A139: 7.1.3. | B139: Balionas turi turėti rentgeno kontrastines žymes | G139: Balionas turi tureti rentgeno kontrastines zymes
A140: 7.1.4. | B140: Dvikanalis distalinis galas. Vienas skirtas balionui pripūsti, kitas – pravedėjui | G140: Dvikanalis distalinis galas Vienas skirtas balionui pripusti, kitas-pravedejui
A141: 7.1.5. | B141: Pravedėjas turi būti rinkinyje su balionu, 0,0035¨ dydžio | G141: Pravedejas rinkinyje su alionu 0,0035" dydzio
A142: 7.1.6. | B142: Ant kataeterio yra informacinė nuoroda apie baliono dydžius | G142: Ant kateterio yra informacine nuoroda apie baliono dydzius
A143: 7.1.7. | B143: Ant kataeterio yra informacinė nuoroda apie baliono dydžius | G143: Ant kateterio yra informacine nuoroda apie baliono dydzius
A144: 7.1.8. | B144: Darbinis kateterio ilgis ne mažesnis nei 240cm | G144: Darbinis kateterio ilgis 240 cm
A145: 7.1.9. | B145: Tinkantis 2,8mm endoskopo darbiniam kanalui | G145: Tinkantis 2,8mm endoskopo kanalui
A146: 7.1.10. | B146: Išpūsto baliono ilgis ne mažesnis nei 4 cm | G146: Išpūsto baliono ilgis 4 cm
A147: 7.1.11. | B147: Galimi keletas baliono diametrų: 6-8 mm, 8-10 mm, 12-15 mm, 18-20 mm arba ekvivalentiški | G147: Galimi keletas baliono mm, 8-10 mm, 12-15 mm, 18-20 mm arba ekvivalentiški
E148: Suma be PVM | F148: =IF((COUNT(C136:C147)<>COUNT(F136:F147)),"", SUM(F136:F147)) -> 3180 | G148: =IF((COUNT(C136:C147)<>COUNT(F136:F147)),"Neužpildytos visų objektų kainos", "") -> 
E149: PVM suma | F149: =(3180*1.05)-3180 -> 159
E150: Suma su PVM | F150: =IF(ISBLANK(F149), "", SUM(F148:F149)) -> 3339
A152: 8. | B152: Pankreatobilijiniai plastikiniai stentai su į vedimo sistema
A153: 8.1. | B153: Tulžies latakų plastikiniai stentai su į vedimo sistema | C153: 10 | D153: vnt. | E153: 44 | F153: =IF(ISBLANK(E153),"", PRODUCT(C153,E153)) -> 440
A154: 8.1.1. | B154: Stento ilgis 5cm, 7cm, 9cm, 12 cm ar15 cm pagal poreikį | G154: Boston Scientific, Percuflex Amsterdam, Stent M00533610-M00533700, Stento ilgis 5,7,9,12 ar 15 cm pagal poreiki
A155: 8.1.2. | B155: Stenats tiesus 7 Fr arba 10 Fr pagal poreikį. | G155: Stentas tiesus 7 Fr arba 10 Fr pagal poreiki
A156: 8.2. | B156: Kasos stentų sistema ūmaus pankreatito prevencijai | C156: 20 | D156: vnt. | E156: 150 | F156: =IF(ISBLANK(E156),"", PRODUCT(C156,E156)) -> 3000
A157: 8.2.1. | B157: Sterili, vienkartinė RX tipo sistema | G157: Boston Scientific, Advanix Pancreatic Stent, sterili, vienkartine RX tipo sistema
A158: 8.2.2. | B158: Stentas pagamintas iš poliuretano | G158: Stentas pagamintas is poliuretano
A159: 8.2.3. | B159: Turi rentgenokontrastinę juostelę | G159: Turi rentgenokontrastine juostele
A160: 8.2.4. | B160: Stentas turi atsišakojimus, užmautas ant kateterio, iš karto paruoštas įvedimui, su užrakinimo-atrakinimo sistema | G160: Stentas turi atsisakojimus, uzmautas ant kateterio, is karto paruostas ivedimui, su uzrakinimo-atrakinimo sistema
A161: 8.2.5. | B161: Galimas stento ilgis 2-18 cm | G161: Galimas stanto ilgis 2-18 cm
A162: 8.2.6. | B162: Stento dydis 3/4/5/7/10 Fr pagal poreikį | G162: Stento dydis 3/4/5/7/10 fr pagal poreiki
A163: 8.2.7. | B163: Pigtail arba tiesaus tipo | G163: Pigtail arba tiesaus tipo
A164: 8.2.8. | B164: Per visą stento ilgį išdėstytos „akutės“ | G164: Per visa stento ilgi isdestytos "akutes"
A165: 8.2.9. | B165: Sistemai tinka 0,021¨ ir 0,035¨ kreipiamoji styga - pravediklis | G165: Sistemai tinka 0,021¨ ir 0,035¨ kreipiamoji styga - pravediklis
A166: 8.2.10. | B166: Prie sistemos privalomas plastikinis laikiklis stygai fiksuoti, kuris tvirtinasi prie endoskopo | G166: Prie sistemos privalomas plastikinis laikiklis stygai fiksuoti, kuris tvirtinasi prie endoskopo
E167: Suma be PVM | F167: =IF((COUNT(C153:C166)<>COUNT(F153:F166)),"", SUM(F153:F166)) -> 3440 | G167: =IF((COUNT(C153:C166)<>COUNT(F153:F166)),"Neužpildytos visų objektų kainos", "") -> 
E168: PVM suma | F168: =(3440*1.05)-3440 -> 172
E169: Suma su PVM | F169: =IF(ISBLANK(F168), "", SUM(F167:F168)) -> 3612
A171: 9. | B171: Papilatomas kartu su kreipiamąja viela
A172: 9.1. | B172: Papilatomas kartu su kreipiamąja viela | C172: 10 | D172: vnt. | E172: 260 | F172: =IF(ISBLANK(E172),"", PRODUCT(C172,E172)) -> 2600
A173: 9.1.1. | B173: Sterili, vienkartinė pakuotė | G173: Boston Scientific, Jagtome, M0057300-M00573110, sterili vienkartine pakuote
A174: 9.1.2. | B174: akuotėje privalo būti sfinkterotomas ir kreipiamoji viela kartu | G174: Pakuoteje yra sfinkteratomas ir kreipiamoji viela kartu
A175: 9.1.3. | B175: Tinkantis 2,8 mm darbiniam kanalui | G175: Tinkantis 2,8 mm darbiniam kanalui
A176: 9.1.4. | B176: Kateterio ilgis ne trumpesnis nei 200 cm, pjaunamosios vielos ilgis 20-30 mm ilgio | G176: Kateterio ilgis 200 cm, pjaunamos vielos ilgis 20-30 mm ilgio
A177: 9.1.5. | B177: Trijų darbinių kanalų | G177: Triju darbiniu kanalu
A178: 9.1.6. | B178: Papiliatomo galiukas smailėjantis, galiuko ilgis 3-5 mm | G178: Papiliatomo galiukas smailejantis, galiuko ilgis 3-5 mm
A179: 9.1.7. | B179: Galimi vielos dydžiai 0,025¨ arba 0,035¨, ne trumpesnė nei 260 cm, rentgenokontrastinė per visa ilgį | G179: Galimi vielos dydziai 0,025'' arba 0,035'', 260 cm, rentgenokontrastine per visa ilgi
E180: Suma be PVM | F180: =IF((COUNT(C172:C179)<>COUNT(F172:F179)),"", SUM(F172:F179)) -> 2600 | G180: =IF((COUNT(C172:C179)<>COUNT(F172:F179)),"Neužpildytos visų objektų kainos", "") -> 
E181: PVM suma | F181: =(2600*1.05)-2600 -> 130
E182: Suma su PVM | F182: =IF(ISBLANK(F181), "", SUM(F180:F181)) -> 2730
A184: 10. | B184: Papiliatominis peilis
A185: 10.1. | B185: Papiliatominis peilis | C185: 20 | D185: vnt. | E185: 117 | F185: =IF(ISBLANK(E185),"", PRODUCT(C185,E185)) -> 2340
A186: 10.1.1. | B186: Vienkartinis | G186: Boston Scientific, Ultratome XL Triple- Lumen, M00535900-M00535930, vienkartinis
A187: 10.1.2. | B187: Sterili pakuotė | G187: Sterili pakuote
A188: 10.1.3. | B188: Tinkantis 2,8 mm darbiniam endoskopo kanalui | G188: Tinkantis 2,8 mm darbiniam endoskopo kanalui
A189: 10.1.4. | B189: Trijų kanalų | G189: Trijų kanale
A190: 10.1.5. | B190: Papilotomas su apsaugine danga ant pjovimo vielos | G190: Papilotomas su apsaugine danga ant pjovimo vielos
A191: 10.1.6. | B191: Kateterio ilgos 170-210 cm ilgio | G191: Kateterio ilgos 170-210 cm ilgio
A192: 10.1.7. | B192: Galiuko ilgis 3-5 mm su rengenokontrastine žyme | G192: Galiuko ilgis 3-5 mm su rengenokontrastine žyme
A193: 10.1.8. | B193: Tinka darbui su 0,035“ styga – pravedikliu | G193: Tinka darbui su 0,035“ styga – pravedikliu
E194: Suma be PVM | F194: =IF((COUNT(C185:C193)<>COUNT(F185:F193)),"", SUM(F185:F193)) -> 2340 | G194: =IF((COUNT(C185:C193)<>COUNT(F185:F193)),"Neužpildytos visų objektų kainos", "") -> 
E195: PVM suma | F195: =(2340*1.05)-2340 -> 117
E196: Suma su PVM | F196: =IF(ISBLANK(F195), "", SUM(F194:F195)) -> 2457
A198: 11. | B198: Balioninis tulžies latakų akmenų šalinimo kateteris
A199: 11.1. | B199: Balioninis tulžies latakų akmenų šalinimo kateteris | C199: 15 | D199: vnt. | E199: 130 | F199: =IF(ISBLANK(E199),"", PRODUCT(C199,E199)) -> 1950
A200: 11.1.1. | B200: Vienkartinis | G200: Boston Scientific, Extrator Pro XL Balloon cath, M00547100-M00547150, vienkartinis
A201: 11.1.2. | B201: Sterili pakuotė | G201: Sterili pakuote
A202: 11.1.3. | B202: Trijų spindžių | G202: Trijų spindžių
A203: 11.1.4. | B203: Tinkantis 2,8 mm darbiniam endoskopo kanalui | G203: Tinkantis 2,8 mm darbiniam endoskopo kanalui
A204: 11.1.5. | B204: Ne trumpesnis nei 200 cm | G204: Ne trumpesnis nei 200 cm
A205: 11.1.6. | B205: Tinka darbui su 0,035“ styga – pravedikliu | G205: Tinka darbui su 0,035“ styga – pravedikliu
A206: 11.1.7. | B206: Pripūsto balionėlio galimi dydžiai pagal poreikį 9-12 mm, 12-15mm, 15-18mm ar ekvivalentiški | G206: Pripūsto balionėlio galimi dydžiai pagal poreikį 9-12 mm, 12-15mm, 15-18mm ar ekvivalentiški
A207: 11.1.8. | B207: Injekcijos išėjimo anga distaliai arba proksimaliai balionėlio | G207: Injekcijos išėjimo anga distaliai arba proksimaliai balionėlio
E208: Suma be PVM | F208: =IF((COUNT(C199:C207)<>COUNT(F199:F207)),"", SUM(F199:F207)) -> 1950 | G208: =IF((COUNT(C199:C207)<>COUNT(F199:F207)),"Neužpildytos visų objektų kainos", "") -> 
E209: PVM suma | F209: =(1950*1.05)-1950 -> 97.5
E210: Suma su PVM | F210: =IF(ISBLANK(F209), "", SUM(F208:F209)) -> 2047.5
A212: 12. | B212: Styga - pravediklis
A213: 12.1. | B213: Styga - pravediklis | C213: 5 | D213: vnt. | F213: =IF(ISBLANK(E213),"", PRODUCT(C213,E213)) -> 
A214: 12.1.1. | B214: Sterilus
A215: 12.1.2. | B215: Vienkartinė pakuotė
A216: 12.1.3. | B216: Rinkinyje yra viena viela dviem darbiniais rentgenokontrastiniais galais
A217: 12.1.4. | B217: Viela 0,035¨ skersmens
A218: 12.1.5. | B218: 260 (±5)cm arba 450 (±5) cm ilgio
A219: 12.1.6. | B219: Turi rentgenokontrastines žymes
A220: 12.1.7. | B220: Tinka sfinkterotomijai
A221: 12.1.8. | B221: Rinkinyje turi būti stygos laikiklis
E222: Suma be PVM | F222: =IF((COUNT(C213:C221)<>COUNT(F213:F221)),"", SUM(F213:F221)) ->  | G222: =IF((COUNT(C213:C221)<>COUNT(F213:F221)),"Neužpildytos visų objektų kainos", "") -> Neužpildytos visų objektų kainos
... 73 more rows

Sheet Subtiekėjai
A2: Subtiekėjai ir jiems perduodama vykdyti pirkimo sutarties dalis:
A4: Eil. Nr | C4: Subtiekėjo pavadinimas | F4: Pirkimo objekto dalies, perduodamos vykdyti subtiekėjui, aprašymas | I4: Procentas perduodamos vykdyti pirkimo objekto dalies nuo pasiūlymo kainos su PVM (pildoma, jei ūkio subjektas vykdys sutartį)
A11: Kartu su pasiūlymu pateikiami šie dokumentai:
A13: Eil.Nr. | B13: Dokumentas | E13: Ar dokumnetas konfidencialus? (Taip/Ne) | G13: Prisegtos bylos (failo) pavadinimas | I13: Paaiškinimas, kokia konkreti informacija dokumente yra konfidenciali
A14: 1 | B14: Igaliojimas pasirasyti dokumentus | E14: Ne | G14: Igaliojimas pasirasyti dokumentus
A15: 2 | B15: Gamintojo igaliojimai | E15: TAIP | G15: Gamintoju igaliojimai | I15: komercines paslaptis
A16: 3 | B16: Sertifikatai | E16: TAIP | G16: Sertifikatai | I16: komercines paslaptis
A17: 4 | B17: Katalogai | E17: TAIP | G17: Katalogai | I17: komercines paslaptis
A20: Pasirašydamas šį pasiūlymą, tvirtintu, kad: 1) pasiūlymo dokumentuose pateikti duomenys yra tikri; 2) siūlomas Pirkimo objektas visiškai atitinka Pirkimo dokumentuose nustatytus reikalavimus; 3) sutinku su visomis Pirkimo dokumentuose nustatytomis sąlygomis; 4) pasiūlymas galioja iki termino, nustatyto Pirkimo dokumentuose; 5) mes esame / nesame (nereikalingą išbraukti) laikomi asocijuotais (susijusiais) su Perkančiuoju subjektu pagal Lietuvos Respublikoje galiojančių teisės aktų (Lietuvos Respublikos pelno mokesčio, Lietuvos Respublikos pridėtinės vertės mokesčio ir Lietuvos Respublikos gyventojų pajamų mokesčio įstatymų) nuostatas; 6) savo pasiūlymo galiojimą užtikrinsiu pagal Specialiųjų sąlygų 6.1 punktą (jei taikoma).
A22: Pasiūlymo galiojimo užtikrinimui pateikiame :
A24: (Nurodyti užtikrinimo būdą, dydį, dokumentus)
A26: Pasiūlymas galioja iki termino, nustatyto pirkimo dokumentuose. Pasiūlymo neatskiriama dalis yra (rašoma, jeigu buvo reikalauta prie pasiūlymo pridėti atitinkamą dokumentą)
A30: Tiekėjo arba jo įgalioto asmens pareigų pavadinimas | E30: Viešųjų pirkimų vadovė
A33: Pasirašančio asmens vardas ir pavardė | E33: Sandra Čaikė
A100: 3063 2019-10-17 13:27:17
